[Event "*** Titled Tuesday Blitz"]
[Site "Chess.com"]
[Date "2018.05.01"]
[Round "9"]
[White "Jospem"]
[Black "Storne89"]
[Result "0-1"]
[WhiteElo "2681"]
[BlackElo "2555"]
[TimeControl "180+2"]
[EndTime "15:02:44 PDT"]
[Termination "Storne89 won by resignation"]

1. e4 {[%clk 0:01:41.3]} 1... e5 {[%clk 0:02:59.7]} 2. Nf3 {[%clk 0:01:40.5]}
2... Nc6 {[%clk 0:03:00.7]} 3. Bb5 {[%clk 0:01:42.1]} 3... Nge7 {[%clk
0:02:59.7]} 4. c3 {[%clk 0:01:42.5]} 4... d5 {[%clk 0:03:00.9]} 5. d4 {[%clk
0:01:38.8]} 5... exd4 {[%clk 0:02:54.2]} 6. exd5 {[%clk 0:01:36.9]} 6... Qxd5
{[%clk 0:02:53]} 7. Bxc6+ {[%clk 0:01:29.3]} 7... Nxc6 {[%clk 0:02:52.3]} 8.
cxd4 {[%clk 0:01:30.8]} 8... Bg4 {[%clk 0:02:48.3]} 9. Nc3 {[%clk 0:01:26.7]}
9... Bb4 {[%clk 0:02:40]} 10. O-O {[%clk 0:01:24]} 10... Bxc3 {[%clk 0:02:39.3]}
11. bxc3 {[%clk 0:01:25.8]} 11... O-O {[%clk 0:02:30.8]} 12. Bf4 {[%clk
0:01:25.7]} 12... Bxf3 {[%clk 0:02:30.7]} 13. Qxf3 {[%clk 0:01:23.9]} 13... Qxf3
{[%clk 0:02:31.7]} 14. gxf3 {[%clk 0:01:25.8]} 14... Rac8 {[%clk 0:02:33.2]} 15.
Rac1 {[%clk 0:01:21.8]} 15... Rfd8 {[%clk 0:02:28.4]} 16. Rfd1 {[%clk
0:01:21.7]} 16... Rd5 {[%clk 0:02:25.6]} 17. Be3 {[%clk 0:01:20.4]} 17... Ra5
{[%clk 0:02:21.8]} 18. Rd2 {[%clk 0:01:14]} 18... b6 {[%clk 0:02:09.7]} 19. c4
{[%clk 0:00:59.5]} 19... Rf5 {[%clk 0:02:10.5]} 20. Kg2 {[%clk 0:00:59.6]} 20...
Na5 {[%clk 0:02:07.2]} 21. Rd3 {[%clk 0:00:53.6]} 21... Nb7 {[%clk 0:02:00.7]}
22. Ra3 {[%clk 0:00:50.8]} 22... Ra5 {[%clk 0:01:56]} 23. Rcc3 {[%clk
0:00:51.6]} 23... Rxa3 {[%clk 0:01:37.3]} 24. Rxa3 {[%clk 0:00:53.4]} 24... Na5
{[%clk 0:01:38.7]} 25. Ra4 {[%clk 0:00:52.6]} 25... Rd8 {[%clk 0:01:36.2]} 26.
d5 {[%clk 0:00:49.9]} 26... c6 {[%clk 0:01:27.4]} 27. c5 {[%clk 0:00:42.3]}
27... Rb8 {[%clk 0:00:42.8]} 28. cxb6 {[%clk 0:00:25.2]} 28... axb6 {[%clk
0:00:44.7]} 29. Bxb6 {[%clk 0:00:24.8]} 29... Rxb6 {[%clk 0:00:45.9]} 30. Rxa5
{[%clk 0:00:25.9]} 30... f6 {[%clk 0:00:40.8]} 31. d6 {[%clk 0:00:17.8]} 31...
Kf7 {[%clk 0:00:42.1]} 32. Ra7+ {[%clk 0:00:17.8]} 32... Ke6 {[%clk 0:00:41.6]}
33. Rxg7 {[%clk 0:00:13.5]} 33... Kxd6 {[%clk 0:00:40.8]} 34. Ra7 {[%clk
0:00:11.9]} 34... h5 {[%clk 0:00:34.8]} 35. Kg3 {[%clk 0:00:12.5]} 35... c5
{[%clk 0:00:33.4]} 36. Kh4 {[%clk 0:00:11.4]} 36... c4 {[%clk 0:00:34.7]} 37.
Ra3 {[%clk 0:00:11.6]} 37... Rc6 {[%clk 0:00:34.7]} 38. Rc3 {[%clk 0:00:10.1]}
38... Rc5 {[%clk 0:00:32.2]} 39. f4 {[%clk 0:00:11.2]} 39... Kd5 {[%clk
0:00:32.7]} 40. Rc1 {[%clk 0:00:09.4]} 40... Ke4 {[%clk 0:00:30.5]} 41. a4
{[%clk 0:00:08.3]} 41... c3 {[%clk 0:00:31.2]} 42. a5 {[%clk 0:00:09]} 42... Kd3
{[%clk 0:00:32.6]} 43. a6 {[%clk 0:00:04.1]} 43... Ra5 {[%clk 0:00:31.8]} 44. a7
{[%clk 0:00:04]} 44... Kd2 {[%clk 0:00:26.6]} 45. Rh1 {[%clk 0:00:04.7]} 45...
c2 {[%clk 0:00:26.3]} 46. a8=Q {[%clk 0:00:05.5]} 46... Rxa8 {[%clk 0:00:27.3]}
47. Kxh5 {[%clk 0:00:07.3]} 47... c1=Q {[%clk 0:00:15.3]} 48. Rxc1 {[%clk
0:00:07.9]} 48... Kxc1 {[%clk 0:00:17.2]} 49. Kg6 {[%clk 0:00:09.5]} 49... Kd2
{[%clk 0:00:17.3]} 50. Kxf6 {[%clk 0:00:09.1]} 50... Kd3 {[%clk 0:00:18.6]} 51.
h4 {[%clk 0:00:09.9]} 51... Ke4 {[%clk 0:00:19.9]} 52. h5 {[%clk 0:00:11.3]}
52... Ra6+ {[%clk 0:00:18.6]} 53. Kg7 {[%clk 0:00:11.3]} 53... Kf5 {[%clk
0:00:19.9]} 54. h6 {[%clk 0:00:13]} 54... Ra7+ {[%clk 0:00:20.9]} 55. Kg8 {[%clk
0:00:13.2]} 55... Kg6 {[%clk 0:00:21.7]} 56. f5+ {[%clk 0:00:14.5]} 56... Kxh6
{[%clk 0:00:21.5]} 57. f4 {[%clk 0:00:15.9]} 57... Ra8+ {[%clk 0:00:17.2]} 58.
Kf7 {[%clk 0:00:16.8]} 58... Ra7+ {[%clk 0:00:17.8]} 59. Kg8 {[%clk 0:00:18.1]}
59... Kh5 {[%clk 0:00:17.6]} 60. Kf8 {[%clk 0:00:12.1]} 60... Kg4 {[%clk
0:00:18]} 61. f6 {[%clk 0:00:12.9]} 61... Kf5 {[%clk 0:00:19.5]} 62. f7 {[%clk
0:00:14.1]} 62... Kf6 {[%clk 0:00:20.6]} 63. Ke8 {[%clk 0:00:16]} 63... Rxf7
{[%clk 0:00:21.2]} 64. f5 {[%clk 0:00:17.9]} 64... Ra7 {[%clk 0:00:21.9]} 0-1

[Event "*** Titled Tuesday Blitz"]
[Site "Chess.com"]
[Date "2018.05.01"]
[Round "9"]
[White "GulamaliRises"]
[Black "Fy_Rakotomaharo"]
[Result "0-1"]
[WhiteElo "2488"]
[BlackElo "2503"]
[TimeControl "180+2"]
[EndTime "15:02:52 PDT"]
[Termination "Fy_Rakotomaharo won by resignation"]

1. e4 {[%clk 0:03:01.9]} 1... e5 {[%clk 0:03:00.6]} 2. Nc3 {[%clk 0:03:02]} 2...
Nf6 {[%clk 0:03:00.6]} 3. f4 {[%clk 0:03:02.8]} 3... d5 {[%clk 0:02:58.8]} 4.
fxe5 {[%clk 0:03:03.6]} 4... Nxe4 {[%clk 0:02:59.5]} 5. Qf3 {[%clk 0:03:04.9]}
5... Nc6 {[%clk 0:02:53.7]} 6. Bb5 {[%clk 0:02:48.7]} 6... Nxc3 {[%clk
0:02:16.8]} 7. bxc3 {[%clk 0:02:39.9]} 7... Be7 {[%clk 0:02:13.3]} 8. d4 {[%clk
0:02:39.9]} 8... O-O {[%clk 0:02:12.2]} 9. Ne2 {[%clk 0:02:40.9]} 9... f6 {[%clk
0:02:13]} 10. e6 {[%clk 0:01:55.5]} 10... Bxe6 {[%clk 0:02:11.5]} 11. Nf4 {[%clk
0:01:56.8]} 11... Bf7 {[%clk 0:02:08.4]} 12. O-O {[%clk 0:01:56.9]} 12... Na5
{[%clk 0:01:56.2]} 13. Rb1 {[%clk 0:01:57]} 13... c6 {[%clk 0:01:56.5]} 14. Bd3
{[%clk 0:01:57.8]} 14... g6 {[%clk 0:01:52]} 15. Re1 {[%clk 0:01:58.1]} 15...
Bd6 {[%clk 0:01:44.5]} 16. Ne6 {[%clk 0:01:54.3]} 16... Bxe6 {[%clk 0:01:43.9]}
17. Rxe6 {[%clk 0:01:56.2]} 17... Rf7 {[%clk 0:01:25.5]} 18. Bf4 {[%clk
0:01:38.8]} 18... Bxf4 {[%clk 0:01:20.2]} 19. Qxf4 {[%clk 0:01:40.7]} 19... Kg7
{[%clk 0:01:11.5]} 20. Rbe1 {[%clk 0:01:40]} 20... Nc4 {[%clk 0:00:52.2]} 21. h4
{[%clk 0:01:37]} 21... Kh8 {[%clk 0:00:30.8]} 22. h5 {[%clk 0:01:34.1]} 22...
gxh5 {[%clk 0:00:30.1]} 23. Qh6 {[%clk 0:00:53.5]} 23... Qf8 {[%clk 0:00:23.7]}
24. Qxh5 {[%clk 0:00:53.8]} 24... Qg8 {[%clk 0:00:20.4]} 25. Re7 {[%clk
0:00:44.6]} 25... Raf8 {[%clk 0:00:20.6]} 26. R1e6 {[%clk 0:00:45.4]} 26... Qg7
{[%clk 0:00:19.3]} 27. Re8 {[%clk 0:00:43.7]} 27... a5 {[%clk 0:00:14.1]} 28.
Kf2 {[%clk 0:00:29.7]} 28... a4 {[%clk 0:00:14.8]} 29. Rxf8+ {[%clk 0:00:23.3]}
29... Rxf8 {[%clk 0:00:15]} 30. Re8 {[%clk 0:00:24.2]} 30... Rxe8 {[%clk
0:00:09.6]} 31. Qxe8+ {[%clk 0:00:26.1]} 31... Qg8 {[%clk 0:00:11]} 32. Qe7
{[%clk 0:00:26.3]} 32... Qg7 {[%clk 0:00:07.9]} 33. Qd8+ {[%clk 0:00:27.1]}
33... Qg8 {[%clk 0:00:09.3]} 34. Qxf6+ {[%clk 0:00:28.3]} 34... Qg7 {[%clk
0:00:10.8]} 35. Qd8+ {[%clk 0:00:25.7]} 35... Qg8 {[%clk 0:00:12.1]} 36. Qh4
{[%clk 0:00:18.6]} 36... Qf8+ {[%clk 0:00:12.4]} 37. Kg1 {[%clk 0:00:19.7]}
37... Qf7 {[%clk 0:00:12.4]} 38. Qd8+ {[%clk 0:00:18.9]} 38... Kg7 {[%clk
0:00:13.8]} 39. Qg5+ {[%clk 0:00:19.7]} 39... Kf8 {[%clk 0:00:15.1]} 40. Qh6+
{[%clk 0:00:19.1]} 40... Kg8 {[%clk 0:00:15.6]} 41. Qg5+ {[%clk 0:00:19.3]}
41... Kf8 {[%clk 0:00:16.8]} 42. Qd8+ {[%clk 0:00:20.4]} 42... Kg7 {[%clk
0:00:17.9]} 43. g3 {[%clk 0:00:20.5]} 43... Nb2 {[%clk 0:00:15.7]} 44. Qg5+
{[%clk 0:00:19.8]} 44... Kf8 {[%clk 0:00:17]} 45. Bf1 {[%clk 0:00:21]} 45... Nd1
{[%clk 0:00:17.1]} 46. Qd2 {[%clk 0:00:20.8]} 46... Nb2 {[%clk 0:00:16.9]} 47.
Qc1 {[%clk 0:00:20]} 47... a3 {[%clk 0:00:18.1]} 48. Qg5 {[%clk 0:00:19.7]}
48... Qf3 {[%clk 0:00:17.1]} 49. Bg2 {[%clk 0:00:09]} 49... Qf7 {[%clk
0:00:15.1]} 50. Kh2 {[%clk 0:00:09.3]} 50... Nd1 {[%clk 0:00:16.2]} 51. Qd8+
{[%clk 0:00:09.1]} 51... Kg7 {[%clk 0:00:17]} 52. Qg5+ {[%clk 0:00:11]} 52...
Qg6 {[%clk 0:00:17.5]} 53. Qe7+ {[%clk 0:00:12.2]} 53... Kh6 {[%clk 0:00:18.1]}
54. Qe1 {[%clk 0:00:12.9]} 54... Qh5+ {[%clk 0:00:13.8]} 55. Kg1 {[%clk
0:00:12.5]} 55... Qg4 {[%clk 0:00:13.9]} 56. Kh2 {[%clk 0:00:11]} 56... Qh5+
{[%clk 0:00:14.4]} 57. Kg1 {[%clk 0:00:10.5]} 57... Qg4 {[%clk 0:00:15.4]} 58.
Bf1 {[%clk 0:00:11.6]} 58... Qf3 {[%clk 0:00:13.7]} 59. Be2 {[%clk 0:00:11.5]}
59... Qe3+ {[%clk 0:00:14.5]} 60. Kg2 {[%clk 0:00:12.6]} 60... Nxc3 {[%clk
0:00:15]} 61. Qh1+ {[%clk 0:00:13.5]} 61... Kg7 {[%clk 0:00:15.4]} 62. Bd3
{[%clk 0:00:14.9]} 62... Ne4 {[%clk 0:00:15.8]} 63. Qh4 {[%clk 0:00:14.3]} 63...
Qg5 {[%clk 0:00:15.2]} 64. Qh3 {[%clk 0:00:13.2]} 64... Qd2+ {[%clk 0:00:15.2]}
65. Kg1 {[%clk 0:00:14.7]} 65... Qf2+ {[%clk 0:00:15.9]} 66. Kh1 {[%clk
0:00:16.1]} 66... Nxg3+ {[%clk 0:00:16.9]} 0-1

[Event "*** Titled Tuesday Blitz"]
[Site "Chess.com"]
[Date "2018.05.01"]
[Round "9"]
[White "Yurovskykh_Oleksandr"]
[Black "cukus"]
[Result "1-0"]
[WhiteElo "2363"]
[BlackElo "2364"]
[TimeControl "180+2"]
[EndTime "15:04:18 PDT"]
[Termination "Yurovskykh_Oleksandr won by resignation"]

1. e4 {[%clk 0:02:51.3]} 1... c5 {[%clk 0:02:59.5]} 2. Nf3 {[%clk 0:02:51.9]}
2... d6 {[%clk 0:03:00.3]} 3. Bb5+ {[%clk 0:02:52.7]} 3... Bd7 {[%clk 0:03:00]}
4. Bxd7+ {[%clk 0:02:51.8]} 4... Qxd7 {[%clk 0:03:01.9]} 5. c4 {[%clk
0:02:52.3]} 5... g6 {[%clk 0:03:01.7]} 6. d4 {[%clk 0:02:47.3]} 6... cxd4 {[%clk
0:03:02.5]} 7. Nxd4 {[%clk 0:02:47.9]} 7... Bg7 {[%clk 0:03:03.2]} 8. Nc3 {[%clk
0:02:47.2]} 8... Nf6 {[%clk 0:03:04.4]} 9. f3 {[%clk 0:02:48]} 9... O-O {[%clk
0:03:05.6]} 10. Be3 {[%clk 0:02:49.3]} 10... Nc6 {[%clk 0:03:05.4]} 11. O-O
{[%clk 0:02:45.9]} 11... Rac8 {[%clk 0:03:04.8]} 12. b3 {[%clk 0:02:44.5]} 12...
Qd8 {[%clk 0:03:04]} 13. Qd2 {[%clk 0:02:44.1]} 13... a6 {[%clk 0:02:35.8]} 14.
Nxc6 {[%clk 0:02:44.6]} 14... Rxc6 {[%clk 0:02:36.3]} 15. Rac1 {[%clk
0:02:43.3]} 15... Rc8 {[%clk 0:02:14.2]} 16. Rfd1 {[%clk 0:02:43]} 16... Re8
{[%clk 0:02:09]} 17. a4 {[%clk 0:02:34.9]} 17... Qa5 {[%clk 0:02:09.8]} 18. Nd5
{[%clk 0:02:11.7]} 18... Qxd2 {[%clk 0:02:08.9]} 19. Rxd2 {[%clk 0:02:10.5]}
19... Nxd5 {[%clk 0:02:07.7]} 20. Rxd5 {[%clk 0:02:10.5]} 20... Be5 {[%clk
0:02:01]} 21. a5 {[%clk 0:02:02.2]} 21... f5 {[%clk 0:01:50.6]} 22. exf5 {[%clk
0:01:57.8]} 22... gxf5 {[%clk 0:01:51.3]} 23. f4 {[%clk 0:01:54.9]} 23... Bb2
{[%clk 0:01:30.7]} 24. Rc2 {[%clk 0:01:52.8]} 24... Ba3 {[%clk 0:01:17.2]} 25.
Rxf5 {[%clk 0:01:53.1]} 25... e6 {[%clk 0:01:18.7]} 26. Rg5+ {[%clk 0:01:53.8]}
26... Kf7 {[%clk 0:01:20]} 27. Bd4 {[%clk 0:01:50.5]} 27... Bc5 {[%clk
0:01:18.8]} 28. Bxc5 {[%clk 0:01:50.9]} 28... dxc5 {[%clk 0:01:19.9]} 29. Rd2
{[%clk 0:01:51.7]} 29... Re7 {[%clk 0:01:12.4]} 30. Kf2 {[%clk 0:01:47.8]} 30...
Kf6 {[%clk 0:01:12]} 31. Ke3 {[%clk 0:01:47.5]} 31... Rc6 {[%clk 0:00:59.3]} 32.
Rd3 {[%clk 0:01:44.3]} 32... Rec7 {[%clk 0:00:58.1]} 33. Kd2 {[%clk 0:01:30.4]}
33... b6 {[%clk 0:00:58.9]} 34. axb6 {[%clk 0:01:31.1]} 34... Rxb6 {[%clk
0:01:00.8]} 35. Kc2 {[%clk 0:01:32.1]} 35... a5 {[%clk 0:01:02.4]} 36. Rd8
{[%clk 0:00:54.5]} 36... a4 {[%clk 0:01:01.7]} 37. bxa4 {[%clk 0:00:55.2]} 37...
Rb4 {[%clk 0:00:56.9]} 38. Rf8+ {[%clk 0:00:43.4]} 38... Ke7 {[%clk 0:00:57.8]}
39. Rg7+ {[%clk 0:00:43.4]} 39... Kd6 {[%clk 0:00:57.5]} 40. Rxc7 {[%clk
0:00:36.6]} 40... Rxc4+ {[%clk 0:00:50.4]} 41. Kd3 {[%clk 0:00:28.5]} 41... Rd4+
{[%clk 0:00:51.5]} 42. Ke3 {[%clk 0:00:29.8]} 42... Kxc7 {[%clk 0:00:52.3]} 43.
Rf7+ {[%clk 0:00:31.2]} 43... Kc6 {[%clk 0:00:50.7]} 44. a5 {[%clk 0:00:31.8]}
44... Ra4 {[%clk 0:00:50.4]} 45. Rxh7 {[%clk 0:00:29.8]} 45... Rxa5 {[%clk
0:00:50.7]} 46. Ke4 {[%clk 0:00:23.3]} 46... Kd6 {[%clk 0:00:49.5]} 47. Rh8
{[%clk 0:00:19.4]} 47... Ra4+ {[%clk 0:00:49.2]} 48. Kf3 {[%clk 0:00:20.5]}
48... c4 {[%clk 0:00:49.2]} 49. h4 {[%clk 0:00:17.6]} 49... c3 {[%clk
0:00:32.8]} 50. Rc8 {[%clk 0:00:15.7]} 50... Ra3 {[%clk 0:00:32.9]} 51. Kg4
{[%clk 0:00:16.1]} 51... Kd5 {[%clk 0:00:27.9]} 52. h5 {[%clk 0:00:16.4]} 52...
Ra2 {[%clk 0:00:05.9]} 53. g3 {[%clk 0:00:12.4]} 53... c2 {[%clk 0:00:05.9]} 54.
h6 {[%clk 0:00:13.4]} 54... Ra7 {[%clk 0:00:02.3]} 55. Rxc2 {[%clk 0:00:13.1]}
55... e5 {[%clk 0:00:03.6]} 56. Rd2+ {[%clk 0:00:11.3]} 56... Ke6 {[%clk
0:00:03.6]} 57. Re2 {[%clk 0:00:12.6]} 57... Kf6 {[%clk 0:00:05.1]} 58. Rxe5
{[%clk 0:00:13.6]} 58... Kg6 {[%clk 0:00:06.6]} 59. Re6+ {[%clk 0:00:14.2]}
59... Kh7 {[%clk 0:00:08]} 60. Kg5 {[%clk 0:00:14.8]} 60... Ra3 {[%clk
0:00:08.2]} 61. g4 {[%clk 0:00:15.5]} 61... Ra7 {[%clk 0:00:08.7]} 62. f5 {[%clk
0:00:16.8]} 62... Rb7 {[%clk 0:00:09.3]} 63. Rg6 {[%clk 0:00:16.1]} 63... Rb4
{[%clk 0:00:07.7]} 64. Rg7+ {[%clk 0:00:17.2]} 64... Kh8 {[%clk 0:00:09.1]} 65.
Rc7 {[%clk 0:00:18.9]} 65... Ra4 {[%clk 0:00:09.1]} 66. Kh5 {[%clk 0:00:19.8]}
66... Ra1 {[%clk 0:00:09.7]} 67. g5 {[%clk 0:00:20.6]} 67... Ra5 {[%clk
0:00:10.3]} 68. Kg6 {[%clk 0:00:21.3]} 68... Ra8 {[%clk 0:00:10.4]} 69. Rh7+
{[%clk 0:00:20.8]} 69... Kg8 {[%clk 0:00:11.1]} 70. Rb7 {[%clk 0:00:22.2]} 70...
Kh8 {[%clk 0:00:11.7]} 71. f6 {[%clk 0:00:23.4]} 71... Rg8+ {[%clk 0:00:11]} 72.
Rg7 {[%clk 0:00:19.6]} 72... Rb8 {[%clk 0:00:08]} 73. h7 {[%clk 0:00:18]} 73...
Rc8 {[%clk 0:00:08.5]} 74. Rg8+ {[%clk 0:00:18.8]} 74... Rxg8+ {[%clk
0:00:09.7]} 75. hxg8=Q+ {[%clk 0:00:20.7]} 75... Kxg8 {[%clk 0:00:11.4]} 76. Kf5
{[%clk 0:00:20.4]} 76... Kf8 {[%clk 0:00:11.9]} 77. g6 {[%clk 0:00:21.4]} 1-0

[Event "*** Titled Tuesday Blitz"]
[Site "Chess.com"]
[Date "2018.05.01"]
[Round "10"]
[White "FMJoseHerrera"]
[Black "Perecke"]
[Result "1-0"]
[WhiteElo "2406"]
[BlackElo "1966"]
[TimeControl "180+2"]
[EndTime "15:07:32 PDT"]
[Termination "FMJoseHerrera won by resignation"]

1. Nf3 {[%clk 0:03:01.9]} 1... d5 {[%clk 0:02:48.3]} 2. g3 {[%clk 0:03:03.8]}
2... c5 {[%clk 0:02:48.2]} 3. Bg2 {[%clk 0:03:05.7]} 3... Nc6 {[%clk 0:02:49.8]}
4. O-O {[%clk 0:03:07.2]} 4... e5 {[%clk 0:02:51.1]} 5. c4 {[%clk 0:03:07.9]}
5... d4 {[%clk 0:02:52.4]} 6. b4 {[%clk 0:03:07.3]} 6... b6 {[%clk 0:02:52.6]}
7. bxc5 {[%clk 0:03:07.1]} 7... bxc5 {[%clk 0:02:53.3]} 8. Nxe5 {[%clk
0:02:57.6]} 8... Nxe5 {[%clk 0:02:53.9]} 9. Bxa8 {[%clk 0:02:59.5]} 9... Bh3
{[%clk 0:02:50.9]} 10. Bg2 {[%clk 0:02:56.5]} 10... Bxg2 {[%clk 0:02:51.5]} 11.
Kxg2 {[%clk 0:02:58.4]} 11... d3 {[%clk 0:02:50.5]} 12. Nc3 {[%clk 0:02:56]}
12... Qa8+ {[%clk 0:02:43.6]} 13. e4 {[%clk 0:02:54.2]} 13... Nf6 {[%clk
0:02:43.5]} 14. f3 {[%clk 0:02:54.4]} 14... Bd6 {[%clk 0:02:43.7]} 15. Qa4+
{[%clk 0:02:54.1]} 15... Nc6 {[%clk 0:02:43.5]} 16. Nb5 {[%clk 0:02:47.3]} 16...
Bb8 {[%clk 0:02:38.8]} 17. Bb2 {[%clk 0:02:39]} 17... O-O {[%clk 0:02:37.9]} 18.
Bxf6 {[%clk 0:02:39.5]} 18... gxf6 {[%clk 0:02:39.8]} 19. Nc3 {[%clk 0:02:39]}
19... Nd4 {[%clk 0:02:40]} 20. Nd5 {[%clk 0:02:38.1]} 20... f5 {[%clk
0:02:34.3]} 21. Rab1 {[%clk 0:02:33.6]} 21... fxe4 {[%clk 0:02:29.9]} 22. fxe4
{[%clk 0:02:35.5]} 22... f5 {[%clk 0:02:31.2]} 23. Qd7 {[%clk 0:02:35.1]} 23...
Be5 {[%clk 0:02:28.2]} 24. Rb7 {[%clk 0:02:32.1]} 24... Qxb7 {[%clk 0:02:21.2]}
1-0

[Event "*** Titled Tuesday Blitz"]
[Site "Chess.com"]
[Date "2018.05.01"]
[Round "10"]
[White "DrVelja"]
[Black "akretchetov"]
[Result "1-0"]
[WhiteElo "2548"]
[BlackElo "2328"]
[TimeControl "180+2"]
[EndTime "15:08:27 PDT"]
[Termination "DrVelja won by checkmate"]

1. e4 {[%clk 0:03:01.9]} 1... e5 {[%clk 0:02:58.8]} 2. Nf3 {[%clk 0:03:03]} 2...
Nc6 {[%clk 0:02:59.9]} 3. Bb5 {[%clk 0:03:03.6]} 3... g6 {[%clk 0:03:00.6]} 4.
c3 {[%clk 0:03:00.1]} 4... a6 {[%clk 0:03:01.3]} 5. Bxc6 {[%clk 0:03:01]} 5...
dxc6 {[%clk 0:03:02.5]} 6. d4 {[%clk 0:03:02.6]} 6... exd4 {[%clk 0:03:02.2]} 7.
cxd4 {[%clk 0:03:04.5]} 7... Bg7 {[%clk 0:03:03]} 8. h3 {[%clk 0:03:04.3]} 8...
Nf6 {[%clk 0:02:39.1]} 9. Nc3 {[%clk 0:03:01.8]} 9... O-O {[%clk 0:02:39.9]} 10.
O-O {[%clk 0:02:58.8]} 10... Re8 {[%clk 0:02:38.5]} 11. Re1 {[%clk 0:02:53.5]}
11... b5 {[%clk 0:02:22.4]} 12. e5 {[%clk 0:02:50.3]} 12... Nd5 {[%clk 0:02:23]}
13. Ne4 {[%clk 0:02:51.8]} 13... f6 {[%clk 0:02:20.2]} 14. exf6 {[%clk
0:02:47.7]} 14... Nxf6 {[%clk 0:02:21.3]} 15. Bg5 {[%clk 0:02:09.7]} 15... Bf5
{[%clk 0:02:15.4]} 16. Qb3+ {[%clk 0:02:02.7]} 16... Kh8 {[%clk 0:02:01.7]} 17.
Nxf6 {[%clk 0:01:39.3]} 17... Rxe1+ {[%clk 0:01:56.7]} 18. Rxe1 {[%clk
0:01:41.2]} 18... Bxf6 {[%clk 0:01:57.5]} 19. Re8+ {[%clk 0:01:41.6]} 19... Qxe8
{[%clk 0:01:53.7]} 20. Bxf6# {[%clk 0:01:42.3]} 1-0

[Event "*** Titled Tuesday Blitz"]
[Site "Chess.com"]
[Date "2018.05.01"]
[Round "10"]
[White "51616516516"]
[Black "Alohamora11"]
[Result "0-1"]
[WhiteElo "2158"]
[BlackElo "2146"]
[TimeControl "180+2"]
[EndTime "15:08:41 PDT"]
[Termination "Alohamora11 won by resignation"]

1. d4 {[%clk 0:03:01.9]} 1... Nf6 {[%clk 0:02:59.8]} 2. c4 {[%clk 0:03:02.7]}
2... c5 {[%clk 0:03:00.1]} 3. d5 {[%clk 0:03:01.9]} 3... e6 {[%clk 0:03:01.2]}
4. Nc3 {[%clk 0:03:02.2]} 4... exd5 {[%clk 0:03:02.1]} 5. cxd5 {[%clk
0:03:04.1]} 5... d6 {[%clk 0:03:03.7]} 6. e4 {[%clk 0:03:05]} 6... g6 {[%clk
0:03:04.3]} 7. Bd3 {[%clk 0:03:03.8]} 7... Bg7 {[%clk 0:03:04.1]} 8. h3 {[%clk
0:03:04.7]} 8... O-O {[%clk 0:03:04.1]} 9. Nf3 {[%clk 0:03:05.5]} 9... b5 {[%clk
0:02:38.6]} 10. O-O {[%clk 0:02:15.8]} 10... a6 {[%clk 0:02:14.2]} 11. Nd2
{[%clk 0:02:08.9]} 11... Nbd7 {[%clk 0:02:09.1]} 12. f4 {[%clk 0:02:06.9]} 12...
Nh5 {[%clk 0:02:09.1]} 13. g4 {[%clk 0:02:03.6]} 13... Qh4 {[%clk 0:01:54.4]}
14. gxh5 {[%clk 0:01:55]} 14... Qg3+ {[%clk 0:01:54.1]} 15. Kh1 {[%clk
0:01:53.8]} 15... Qxh3+ {[%clk 0:01:54.9]} 16. Kg1 {[%clk 0:01:55.1]} 16... Bd4+
{[%clk 0:01:55.1]} 0-1

[Event "*** Titled Tuesday Blitz"]
[Site "Chess.com"]
[Date "2018.05.01"]
[Round "10"]
[White "platy3"]
[Black "Korchmar_Vasiliy"]
[Result "0-1"]
[WhiteElo "2683"]
[BlackElo "2732"]
[TimeControl "180+2"]
[EndTime "15:09:00 PDT"]
[Termination "Korchmar_Vasiliy won by checkmate"]

1. e4 {[%clk 0:03:01.9]} 1... c5 {[%clk 0:03:01.1]} 2. Nf3 {[%clk 0:03:01.7]}
2... d6 {[%clk 0:03:02.5]} 3. d4 {[%clk 0:03:02.6]} 3... cxd4 {[%clk 0:03:04.4]}
4. Nxd4 {[%clk 0:03:04.2]} 4... Nf6 {[%clk 0:03:05.9]} 5. Nc3 {[%clk 0:03:05.7]}
5... Nc6 {[%clk 0:03:06.9]} 6. Bg5 {[%clk 0:03:05.7]} 6... e6 {[%clk 0:03:07.1]}
7. Qd2 {[%clk 0:03:06.3]} 7... a6 {[%clk 0:03:07.9]} 8. O-O-O {[%clk 0:03:06.3]}
8... h6 {[%clk 0:03:08.5]} 9. Bf4 {[%clk 0:02:48]} 9... Bd7 {[%clk 0:03:07.5]}
10. Nxc6 {[%clk 0:02:44.1]} 10... Bxc6 {[%clk 0:03:09.4]} 11. Qe1 {[%clk
0:02:41]} 11... Qc7 {[%clk 0:02:53.5]} 12. Nd5 {[%clk 0:02:39.1]} 12... Bxd5
{[%clk 0:02:46.1]} 13. exd5 {[%clk 0:02:40]} 13... e5 {[%clk 0:02:47.7]} 14. Be3
{[%clk 0:02:38.3]} 14... g6 {[%clk 0:02:42.5]} 15. Be2 {[%clk 0:02:38]} 15...
Bg7 {[%clk 0:02:43.5]} 16. g4 {[%clk 0:02:37.8]} 16... O-O {[%clk 0:02:41.5]}
17. h4 {[%clk 0:02:38.1]} 17... Rac8 {[%clk 0:02:34.7]} 18. c4 {[%clk
0:02:07.7]} 18... b5 {[%clk 0:02:29.7]} 19. g5 {[%clk 0:02:08.9]} 19... hxg5
{[%clk 0:02:24.3]} 20. hxg5 {[%clk 0:02:09.7]} 20... Nd7 {[%clk 0:02:25.8]} 21.
Qf1 {[%clk 0:02:07.5]} 21... bxc4 {[%clk 0:02:23.5]} 22. Qh3 {[%clk 0:02:08.3]}
22... Rfe8 {[%clk 0:02:22.1]} 23. Bg4 {[%clk 0:02:08]} 23... c3 {[%clk
0:02:15.2]} 24. b3 {[%clk 0:01:49.8]} 24... Qa5 {[%clk 0:02:15.9]} 25. a4 {[%clk
0:01:40.6]} 25... Qb4 {[%clk 0:02:16.6]} 26. Bxd7 {[%clk 0:01:24.5]} 26... Qa3+
{[%clk 0:02:16.2]} 27. Kc2 {[%clk 0:01:26]} 27... Qb2+ {[%clk 0:02:17.1]} 28.
Kd3 {[%clk 0:01:27.6]} 28... e4# {[%clk 0:02:18.4]} 0-1